bitfinex/quotes_BTCUSD_20241022
["timestamp","ask_amount","ask_price","bid_price","bid_amount"]
[1729560072695,0.148249,67454.0,67453.0,0.00643041]
[1729560072908,0.148249,67454.0,67449.0,0.00683067]
[1729560073158,0.148249,67454.0,67449.0,0.001652]
[1729560073159,0.34304471,67450.0,67449.0,0.001652]
[1729560073410,0.49130171,67450.0,67449.0,0.001652]
[1729560074557,0.49230171,67450.0,67449.0,0.009652]
[1729560074790,0.49330171,67450.0,67449.0,0.013652]
[1729560075248,0.0769,67444.0,67436.0,0.22312298]
[1729560075458,0.148266,67446.0,67445.0,0.22312298]
[1729560075672,0.148273,67443.0,67437.0,0.15346367]
[1729560075893,0.1773,67444.0,67438.0,0.148284]
[1729560076110,0.1773,67443.0,67438.0,0.148284]
[1729560076332,0.16884471,67440.0,67438.0,0.148284]
[1729560076787,0.16884471,67440.0,67437.0,0.00517867]
[1729560077035,0.16884471,67440.0,67439.0,0.002]
[1729560077470,0.16884471,67440.0,67438.0,0.148282]
[1729560077471,0.16884471,67440.0,67438.0,0.150283]
[1729560077708,0.1773,67443.0,67442.0,0.150275]
[1729560077940,0.1773,67443.0,67442.0,0.29923415]
[1729560079323,0.1793,67443.0,67442.0,0.29923415]
[1729560080949,0.1793,67443.0,67442.0,0.30624358]
[1729560081444,0.34814471,67443.0,67442.0,0.30424358]
[1729560082126,0.1773,67443.0,67442.0,0.30424358]
[1729560082356,0.1783,67443.0,67442.0,0.30424358]
[1729560082800,0.1773,67443.0,67442.0,0.30524358]
[1729560082970,0.1783,67443.0,67442.0,0.30524358]
[1729560083416,0.1783,67443.0,67442.0,0.30624358]
[1729560083605,0.1783,67443.0,67442.0,0.30524358]
[1729560084013,0.1783,67443.0,67442.0,0.30624358]
[1729560084244,0.1783,67443.0,67442.0,0.30524358]
[1729560084640,0.1783,67443.0,67442.0,0.15696858]
[1729560084861,0.22784107,67443.0,67442.0,0.15696858]
[1729560085147,0.37511407,67443.0,67442.0,0.00800943]
[1729560085375,0.1773,67443.0,67442.0,0.00800943]
[1729560085584,0.325573,67443.0,67442.0,0.002]
[1729560085812,0.325573,67443.0,67442.0,0.01005559]
[1729560086037,0.325573,67443.0,67442.0,0.002]
[1729560086249,0.325573,67443.0,67442.0,0.00605559]
[1729560086465,0.326573,67443.0,67442.0,0.005]
[1729560086695,0.40566837,67443.0,67442.0,0.00605559]
[1729560086917,0.40466837,67443.0,67439.0,0.002]
[1729560087132,0.25639537,67443.0,67439.0,0.002]
[1729560087580,0.25639537,67443.0,67442.0,0.001]
[1729560087804,0.1773,67443.0,67440.0,0.00805559]
[1729560088016,0.1773,67443.0,67442.0,0.002]
[1729560088236,0.1793,67443.0,67442.0,0.002]
[1729560088467,0.1793,67443.0,67440.0,0.150279]
[1729560088679,0.1773,67443.0,67442.0,0.00605559]
[1729560088920,0.1773,67443.0,67442.0,0.002]
[1729560089116,0.1773,67443.0,67442.0,0.00805559]
[1729560089327,0.1773,67443.0,67442.0,0.002]
[1729560089526,0.1773,67443.0,67442.0,0.00805559]
[1729560089735,0.1793,67443.0,67442.0,0.002]
[1729560089935,0.1793,67443.0,67442.0,0.00805559]
[1729560090519,0.1793,67443.0,67442.0,0.00605559]
[1729560090873,0.1793,67443.0,67442.0,0.00805559]
[1729560091072,0.1773,67443.0,67442.0,0.00805559]
[1729560091491,0.1793,67443.0,67442.0,0.00605559]
[1729560091918,0.1773,67443.0,67442.0,0.29723415]
[1729560092369,0.1773,67443.0,67442.0,0.30628974]
[1729560092580,0.1773,67443.0,67442.0,0.30928974]
[1729560092821,0.1773,67443.0,67442.0,0.30528974]
[1729560093027,0.1773,67443.0,67442.0,0.30628974]
[1729560093284,0.1773,67443.0,67442.0,0.31028974]
[1729560093498,0.000826,67449.0,67448.0,0.150262]
[1729560093716,0.000826,67449.0,67448.0,0.29922115]
[1729560094138,0.000826,67449.0,67448.0,0.30527674]
[1729560094817,0.04986957,67454.0,67448.0,0.15701474]
[1729560095051,0.04986957,67454.0,67453.0,0.150251]
[1729560095300,0.04986957,67454.0,67453.0,0.14895915]
[1729560095712,0.04986957,67454.0,67453.0,0.15501474]
[1729560095926,0.04986957,67454.0,67453.0,0.00605559]
[1729560096164,0.19811857,67454.0,67453.0,0.00605559]
[1729560096378,0.001,67449.0,67448.0,0.011]
[1729560096637,0.04986957,67454.0,67448.0,0.30022115]
[1729560096849,0.04986957,67454.0,67448.0,0.30627674]
[1729560097068,0.19811857,67454.0,67453.0,0.005]
[1729560097286,0.04986957,67454.0,67450.0,0.002]
[1729560097495,0.148253,67453.0,67450.0,0.002]
[1729560097715,0.148253,67453.0,67451.0,0.00605559]
[1729560097936,0.148253,67452.0,67451.0,0.00605559]
[1729560098376,0.08851116,67453.0,67446.0,0.00017867]
[1729560098598,0.148258,67450.0,67446.0,0.00717867]
[1729560098821,0.148258,67450.0,67446.0,0.00517867]
[1729560099060,0.0972,67449.0,67447.0,0.00605559]
[1729560099495,0.0972,67449.0,67445.0,0.00517867]
[1729560099705,0.0972,67449.0,67442.0,0.29655]
[1729560099706,0.393721,67449.0,67448.0,0.00605559]
[1729560099935,0.622281,67449.0,67443.0,0.00517867]
[1729560100171,0.148266,67446.0,67442.0,0.001652]
[1729560100443,0.228568,67445.0,67444.0,0.00605559]
[1729560100668,0.0803,67445.0,67443.0,0.00604827]
[1729560100883,0.22857,67445.0,67442.0,0.001652]
[1729560101105,0.228569,67445.0,67442.0,0.001652]
[1729560101331,0.0803,67445.0,67443.0,0.01204827]
[1729560101538,0.0803,67445.0,67443.0,0.00604827]
[1729560101754,0.148273,67444.0,67442.0,0.001652]
[1729560101939,0.0813,67445.0,67443.0,0.01404827]
[1729560102182,0.148271,67444.0,67443.0,0.01404827]
[1729560102415,0.0813,67445.0,67443.0,0.01404827]
[1729560102621,0.4099537,67444.0,67443.0,0.008]
[1729560102848,0.317971,67444.0,67443.0,0.008]
[1729560103066,0.48681571,67444.0,67443.0,0.008]
[1729560103285,0.317973,67443.0,67442.0,0.005652]
[1729560103500,0.42646277,67443.0,67442.0,0.005652]
[1729560103740,0.42646277,67443.0,67442.0,0.001652]
[1729560103963,0.42646277,67443.0,67442.0,0.008652]
[1729560104223,0.42646277,67443.0,67442.0,0.001652]
[1729560104224,0.44946277,67443.0,67442.0,0.001652]
[1729560104436,0.340973,67443.0,67442.0,0.001652]
[1729560105082,0.1697,67443.0,67442.0,0.001652]
[1729560105531,0.1717,67443.0,67442.0,0.001652]
[1729560105962,0.319973,67443.0,67442.0,0.001652]
[1729560106837,0.317973,67443.0,67442.0,0.001652]
[1729560107058,0.319973,67443.0,67442.0,0.001652]
[1729560107273,0.319973,67443.0,67442.0,0.004652]
[1729560107747,0.317973,67443.0,67442.0,0.004652]
[1729560107963,0.317973,67443.0,67442.0,0.005652]
[1729560111024,0.317973,67443.0,67442.0,0.002652]
[1729560111246,0.317973,67443.0,67442.0,0.001652]
[1729560111716,0.319973,67443.0,67442.0,0.001652]
[1729560112176,0.319973,67443.0,67442.0,0.003652]
[1729560112796,0.317973,67443.0,67442.0,0.003652]
[1729560113171,0.317973,67443.0,67442.0,0.002652]
[1729560113590,0.317973,67443.0,67442.0,0.005652]
[1729560116134,0.1697,67443.0,67442.0,0.005652]
[1729560116376,0.0935,67443.0,67442.0,0.16012427]
[1729560116602,0.09332156,67443.0,67442.0,0.153927]
[1729560116814,0.09332156,67443.0,67442.0,0.16012427]
[1729560117030,0.09332156,67443.0,67442.0,0.30908342]
[1729560117921,0.000826,67449.0,67448.0,0.148262]
[1729560118124,0.000826,67449.0,67448.0,0.150262]
[1729560118330,0.000826,67449.0,67448.0,0.15645927]
[1729560118985,0.000826,67449.0,67448.0,0.00819727]
[1729560119185,0.005826,67449.0,67448.0,0.00919727]
[1729560120031,0.005826,67449.0,67448.0,0.35181905]
[1729560120234,0.005826,67449.0,67448.0,0.30641842]
[1729560120664,0.008826,67449.0,67448.0,0.30641842]
[1729560120909,0.005826,67449.0,67448.0,0.30641842]
[1729560121152,0.008826,67449.0,67448.0,0.30659709]
[1729560121368,0.008826,67449.0,67448.0,0.30641842]
[1729560121585,0.005826,67449.0,67448.0,0.30641842]
[1729560121800,0.001826,67449.0,67448.0,0.31341842]
[1729560122023,0.006826,67449.0,67448.0,0.31441842]
[1729560122713,0.172926,67449.0,67448.0,0.16315642]
[1729560122943,0.002826,67449.0,67448.0,0.31841842]
[1729560123648,0.002826,67449.0,67448.0,0.16815642]
[1729560124563,0.002826,67449.0,67448.0,0.01919727]
[1729560124792,0.002826,67449.0,67448.0,0.013]
[1729560125210,0.002826,67449.0,67448.0,0.01919727]
[1729560125425,0.002826,67449.0,67448.0,0.16945927]
[1729560126092,0.002826,67449.0,67448.0,0.31841842]
[1729560126322,0.002826,67449.0,67448.0,0.31641842]
[1729560126543,0.002826,67449.0,67448.0,0.16815642]
[1729560126764,0.002826,67449.0,67448.0,0.31641842]
[1729560128290,0.002826,67449.0,67448.0,0.16815642]
[1729560128498,0.002826,67449.0,67448.0,0.31641842]
[1729560129600,0.002826,67449.0,67448.0,0.16815642]
[1729560130526,0.002826,67449.0,67448.0,0.31641842]
[1729560130747,0.002826,67449.0,67448.0,0.31841842]
[1729560131855,0.002826,67449.0,67448.0,0.31641842]
[1729560132289,0.002826,67449.0,67448.0,0.78182021]
[1729560132513,0.002826,67449.0,67448.0,0.84395114]
[1729560132742,0.002826,67449.0,67448.0,0.79382021]
[1729560132964,0.001826,67449.0,67448.0,0.78882021]
[1729560133388,0.008826,67449.0,67448.0,0.78382021]
[1729560133608,0.008826,67449.0,67448.0,0.77882021]
[1729560133821,0.014826,67449.0,67448.0,0.79133349]
[1729560134048,0.008826,67449.0,67448.0,0.79033349]
[1729560134285,0.008826,67449.0,67448.0,0.79133349]
[1729560134286,0.014826,67449.0,67448.0,0.79133349]
[1729560134496,0.006826,67449.0,67448.0,0.79033349]
[1729560134715,0.000826,67449.0,67448.0,0.78933349]
[1729560134936,0.020826,67449.0,67448.0,0.83643041]
[1729560135410,0.006826,67449.0,67448.0,0.83539967]
[1729560135861,0.018826,67449.0,67448.0,0.83639967]
[1729560136326,0.006826,67449.0,67448.0,0.79033349]
[1729560136556,0.012826,67449.0,67448.0,0.79033349]
[1729560136801,0.018826,67449.0,67448.0,0.79133349]
[1729560137023,0.012826,67449.0,67448.0,0.83537641]
[1729560137243,0.012826,67449.0,67448.0,0.79033349]
[1729560137466,0.018826,67449.0,67448.0,0.79133349]
[1729560137719,0.000826,67449.0,67448.0,0.78933349]
[1729560137956,0.000826,67449.0,67448.0,0.79033349]
[1729560137957,0.006826,67449.0,67448.0,0.79033349]
[1729560138187,0.020826,67449.0,67448.0,0.79133349]
[1729560138648,0.006826,67449.0,67448.0,0.79033349]
[1729560138879,0.006826,67449.0,67448.0,0.79133349]
[1729560139107,0.020826,67449.0,67448.0,0.78933349]
[1729560139333,0.020826,67449.0,67448.0,0.79133349]
[1729560139553,0.000826,67449.0,67448.0,0.78933349]
[1729560139770,0.014826,67449.0,67448.0,0.79033349]
[1729560140244,0.000825,67470.0,67469.0,0.01217867]
[1729560140487,0.09,67483.0,67470.0,0.15539267]
[1729560140725,0.09,67483.0,67470.0,0.30435182]
[1729560140951,0.09,67483.0,67470.0,0.45507807]
[1729560141172,0.09,67483.0,67470.0,0.55507807]
[1729560142580,0.00184,67471.0,67470.0,0.56507807]
[1729560143060,0.00284,67471.0,67470.0,0.57707807]
[1729560143726,0.00284,67471.0,67470.0,0.43232522]
[1729560143954,0.00284,67471.0,67470.0,0.6554482]
[1729560144168,0.00284,67471.0,67470.0,0.43232522]
[1729560144389,0.00284,67471.0,67470.0,0.6554482]
[1729560144604,0.00284,67471.0,67470.0,0.43232522]
[1729560152768,0.00284,67471.0,67470.0,0.43732522]
[1729560154962,0.00284,67471.0,67470.0,0.7410482]
[1729560155205,0.00284,67471.0,67470.0,0.69676993]
[1729560155420,0.00284,67471.0,67470.0,0.69876993]
[1729560155841,0.00184,67471.0,67470.0,0.68676993]
[1729560156050,0.00184,67471.0,67470.0,0.66688437]
[1729560156294,0.00784,67471.0,67470.0,0.83672908]
[1729560156536,0.00184,67471.0,67470.0,0.83572908]
[1729560156759,0.00084,67471.0,67470.0,0.65688437]
[1729560156970,0.00084,67471.0,67470.0,0.65788437]
[1729560157210,0.00084,67471.0,67470.0,0.65588437]
[1729560157424,0.00684,67471.0,67470.0,0.50692522]
[1729560158291,0.00684,67471.0,67470.0,0.50792522]
[1729560158738,0.00684,67471.0,67470.0,0.42732522]
[1729560159366,0.00684,67471.0,67470.0,0.54553865]
[1729560159593,0.00684,67471.0,67470.0,0.42732522]
[1729560160971,0.00684,67471.0,67470.0,0.42897722]
[1729560161444,0.00684,67471.0,67470.0,0.64795119]
[1729560161666,0.00684,67471.0,67470.0,0.42897722]
[1729560162112,0.00684,67471.0,67470.0,0.59782193]
[1729560162385,0.00684,67471.0,67470.0,0.57793637]
[1729560162615,0.00684,67471.0,67470.0,0.57993637]
[1729560164941,0.00684,67471.0,67470.0,0.57793637]
[1729560165846,0.00684,67471.0,67470.0,0.62303727]
[1729560172694,0.00684,67471.0,67470.0,0.47407812]
[1729560173218,0.17874,67471.0,67470.0,0.35907812]
[1729560173455,0.17874,67471.0,67470.0,0.31397722]
[1729560174911,0.17874,67471.0,67470.0,0.41397722]
[1729560183333,0.17874,67471.0,67470.0,0.41620104]
[1729560183555,0.17874,67471.0,67470.0,0.41397722]
[1729560187757,0.17874,67471.0,67470.0,0.6371002]
[1729560188011,0.17874,67471.0,67470.0,0.41397722]
[1729560192360,0.17874,67471.0,67470.0,0.52202205]
[1729560200307,0.17874,67471.0,67470.0,0.41397722]
[1729560200948,0.17874,67471.0,67470.0,0.52424592]
[1729560201396,0.17874,67471.0,67470.0,0.52202205]
[1729560204627,0.196614,67471.0,67470.0,0.30879855]
[1729560205145,0.17874,67471.0,67470.0,0.31397722]
[1729560206427,0.17274,67471.0,67470.0,0.31297722]
[1729560206863,0.17374,67471.0,67470.0,0.32297722]
[1729560207052,0.17374,67471.0,67470.0,0.31197722]
[1729560207292,0.17374,67471.0,67470.0,0.32397722]
[1729560207538,0.17474,67471.0,67470.0,0.33597722]
[1729560207756,0.17474,67471.0,67470.0,0.32397722]
[1729560208199,0.17374,67471.0,67470.0,0.32297722]
[1729560208682,0.17374,67471.0,67470.0,0.32397722]
[1729560209985,0.17374,67471.0,67470.0,0.33497722]
[1729560218566,0.35999795,67471.0,67470.0,0.17958455]
[1729560218807,0.50820895,67471.0,67470.0,0.0306254]
[1729560219045,0.55265519,67471.0,67470.0,0.024652]
[1729560219275,0.51383495,67471.0,67470.0,0.024652]
[1729560219495,0.58050431,67471.0,67470.0,0.013652]
[1729560219974,0.57950431,67471.0,67470.0,0.010652]
[1729560220302,0.58450431,67471.0,67470.0,0.010652]
[1729560220531,0.58450431,67471.0,67470.0,0.001652]
[1729560220745,0.58550431,67471.0,67470.0,0.012652]
[1729560220954,0.72299661,67471.0,67470.0,0.006652]
[1729560221165,0.51783495,67471.0,67470.0,0.006652]
[1729560221410,0.52183495,67471.0,67470.0,0.006652]
[1729560221636,0.51783495,67471.0,67470.0,0.006652]
[1729560221850,0.51783495,67471.0,67470.0,0.001652]
[1729560222070,0.51283495,67471.0,67470.0,0.001652]
[1729560222289,0.56225779,67471.0,67470.0,0.001652]
[1729560222507,0.56725779,67471.0,67470.0,0.001652]
[1729560222720,0.56225779,67471.0,67470.0,0.001652]
[1729560222957,0.56225794,67471.0,67470.0,0.001652]
[1729560223164,0.34662395,67471.0,67470.0,0.001652]
[1729560223401,0.17774,67471.0,67470.0,0.001652]
[1729560223627,0.324951,67471.0,67470.0,0.001652]
[1729560223854,0.17774,67471.0,67470.0,0.001652]
[1729560224128,0.18174,67471.0,67470.0,0.151866]
[1729560224332,0.17774,67471.0,67470.0,0.151866]
[1729560224556,0.17774,67471.0,67470.0,0.15710795]
[1729560224779,0.18074,67471.0,67470.0,0.15710795]
[1729560225004,0.18074,67471.0,67470.0,0.15510795]
[1729560225217,0.18074,67471.0,67470.0,0.00689395]
[1729560225423,0.18074,67471.0,67470.0,0.00889395]
[1729560225625,0.17574,67471.0,67470.0,0.00689395]
[1729560226041,0.17874,67471.0,67470.0,0.00689395]
[1729560226462,0.17274,67471.0,67470.0,0.00689395]
[1729560226700,0.17674,67471.0,67470.0,0.00689395]
[1729560226880,0.17974,67471.0,67470.0,0.00689395]
[1729560227084,0.17674,67471.0,67470.0,0.00689395]
[1729560227301,0.17874,67471.0,67470.0,0.00689395]
[1729560227727,0.17274,67471.0,67470.0,0.00689395]
[1729560227973,0.320951,67471.0,67470.0,0.00689395]
[1729560228217,0.320951,67471.0,67470.0,0.001652]
[1729560228415,0.323951,67471.0,67470.0,0.001652]
[1729560229094,0.326951,67471.0,67470.0,0.001652]
[1729560229527,0.323951,67471.0,67470.0,0.001652]
[1729560229763,0.320951,67471.0,67470.0,0.001652]
[1729560229993,0.48206271,67471.0,67470.0,0.001652]
[1729560230211,0.52645719,67471.0,67470.0,0.001652]
[1729560230457,0.48006271,67471.0,67470.0,0.001652]
[1729560230673,0.48006271,67471.0,67453.0,0.22312298]
[1729560230674,0.023,67460.0,67453.0,0.22312298]
[1729560230891,0.35058395,67454.0,67453.0,0.22312298]
[1729560231119,0.49883295,67454.0,67453.0,0.22312298]
[1729560231328,0.148257,67451.0,67446.0,0.22512298]
[1729560231542,0.0994,67452.0,67447.0,0.148262]
[1729560231829,0.247654,67452.0,67447.0,0.148264]
[1729560232050,0.247654,67452.0,67446.0,0.22512298]
[1729560232283,0.148256,67451.0,67446.0,0.002]
[1729560232521,0.148256,67451.0,67443.0,0.30337467]
[1729560232522,0.0823,67449.0,67444.0,0.22312298]
[1729560232751,0.0994,67448.0,67444.0,0.14827]
[1729560232981,0.0994,67448.0,67443.0,0.001652]
[1729560233185,0.0994,67448.0,67446.0,0.002]
[1729560233388,0.247663,67448.0,67446.0,0.002]
[1729560233604,0.0994,67448.0,67446.0,0.004]
[1729560233806,0.1641089,67448.0,67444.0,0.15427]
[1729560234019,0.1641089,67448.0,67444.0,0.006]
[1729560234218,0.1651089,67448.0,67444.0,0.006]
[1729560234438,0.3123719,67448.0,67444.0,0.006]
[1729560234658,0.16888395,67447.0,67444.0,0.006]
[1729560234879,0.16888395,67447.0,67446.0,0.007]
[1729560235101,0.1004,67448.0,67446.0,0.007]
[1729560235335,0.1004,67448.0,67447.0,0.002]
[1729560236028,0.0994,67448.0,67447.0,0.002]
[1729560236230,0.0994,67448.0,67446.0,0.002]
[1729560236231,0.1004,67448.0,67446.0,0.002]
[1729560236431,0.04998409,67447.0,67446.0,0.002]
[1729560237289,0.04998409,67447.0,67446.0,0.150266]
[1729560237492,0.04998409,67447.0,67446.0,0.158266]
[1729560237703,0.05098409,67447.0,67446.0,0.158266]
[1729560238526,0.05098409,67447.0,67446.0,0.156266]
[1729560238739,0.05098409,67447.0,67446.0,0.162266]
[1729560239191,0.05098409,67447.0,67446.0,0.156266]
[1729560239639,0.05198409,67447.0,67446.0,0.163266]
[1729560240362,0.05198409,67447.0,67446.0,0.164918]
[1729560240780,0.002,67447.0,67446.0,0.164918]
[1729560241628,0.002,67447.0,67446.0,0.31387715]
[1729560241856,0.002,67447.0,67446.0,0.31587715]
[1729560244313,0.002,67447.0,67446.0,0.31387715]
[1729560244821,0.002,67447.0,67446.0,0.164918]
[1729560245217,0.002,67447.0,67446.0,0.166918]
[1729560246164,0.002,67447.0,67446.0,0.17240086]
[1729560247012,0.002,67447.0,67446.0,0.17040086]
[1729560247262,0.002,67447.0,67446.0,0.32136001]
[1729560249223,0.002,67447.0,67446.0,0.32653868]
[1729560249996,0.0981,67458.0,67446.0,0.16327268]
[1729560250110,0.0981,67458.0,67457.0,0.14705535]
[1729560250831,0.0981,67458.0,67457.0,0.15253821]
[1729560251733,0.0981,67458.0,67457.0,0.15453821]
[1729560252398,0.0981,67458.0,67457.0,0.15853821]
[1729560252640,0.13145503,67458.0,67457.0,0.01448286]
[1729560253314,0.13145503,67458.0,67457.0,0.009]
[1729560253797,0.35759503,67458.0,67457.0,0.00948286]
[1729560254031,0.35759503,67458.0,67457.0,0.004]
[1729560254270,0.35759503,67458.0,67457.0,0.01148286]
[1729560254506,0.35759503,67458.0,67457.0,0.00948286]
[1729560254763,0.35882963,67458.0,67457.0,0.00948286]
[1729560255042,0.35882963,67458.0,67457.0,0.00548286]
[1729560255288,0.35882963,67458.0,67443.0,0.52131798]
[1729560255289,0.148256,67451.0,67445.0,0.148268]
[1729560255530,0.148262,67448.0,67443.0,0.22477498]
[1729560255788,0.148262,67448.0,67443.0,0.37304698]
[1729560255789,0.0964,67447.0,67443.0,0.37304698]
[1729560256487,0.0964,67447.0,67445.0,0.148268]
[1729560256947,0.14554429,67447.0,67446.0,0.158918]
[1729560257414,0.0964,67447.0,67446.0,0.158918]
[1729560257709,0.0964,67447.0,67446.0,0.010652]
[1729560258173,0.0964,67447.0,67446.0,0.007652]
[1729560258402,0.0964,67447.0,67446.0,0.011652]
[1729560259347,0.1743,67447.0,67446.0,0.011652]
[1729560259587,0.42486019,67447.0,67446.0,0.011652]
[1729560261249,0.42486019,67447.0,67446.0,0.007652]
[1729560261490,0.42486019,67447.0,67446.0,0.009652]
[1729560262148,0.42986019,67447.0,67446.0,0.009652]
[1729560262362,0.42986019,67447.0,67446.0,0.003652]
[1729560262584,0.42986019,67447.0,67446.0,0.001652]
[1729560262801,0.43086019,67447.0,67446.0,0.001652]
[1729560263009,0.43086019,67447.0,67446.0,0.004652]
[1729560263445,0.43086019,67447.0,67446.0,0.001652]
[1729560263892,0.43286019,67447.0,67446.0,0.001652]
[1729560265517,0.43186019,67447.0,67446.0,0.001652]
[1729560265741,0.43286019,67447.0,67446.0,0.001652]
[1729560267171,0.353564,67447.0,67446.0,0.001652]
[1729560268326,0.36015363,67447.0,67446.0,0.001652]
[1729560268552,0.50911278,67447.0,67446.0,0.001652]
[1729560268755,0.50811278,67447.0,67446.0,0.001652]
[1729560268974,0.75854838,67447.0,67446.0,0.001652]
[1729560269215,0.75954838,67447.0,67446.0,0.001652]
[1729560269549,0.76154838,67447.0,67446.0,0.001652]
[1729560269763,0.67184536,67447.0,67446.0,0.001652]
[1729560269970,0.51011278,67447.0,67446.0,0.001652]
[1729560270474,0.50711278,67447.0,67446.0,0.002652]
[1729560270703,0.72250749,67447.0,67446.0,0.003652]
[1729560271392,0.81973329,67447.0,67446.0,0.003652]
[1729560271609,0.65497563,67447.0,67446.0,0.002652]
[1729560271853,0.65297563,67447.0,67446.0,0.001652]
[1729560272076,0.65897563,67447.0,67446.0,0.002652]
[1729560272289,0.65897563,67447.0,67446.0,0.003652]
[1729560272290,0.73051806,67447.0,67446.0,0.003652]
[1729560272501,0.71951806,67447.0,67446.0,0.001652]
[1729560272752,0.72451806,67447.0,67446.0,0.002652]
[1729560272983,0.73051806,67447.0,67446.0,0.003652]
[1729560273195,0.72551806,67447.0,67446.0,0.002652]
[1729560273408,0.65797563,67447.0,67446.0,0.002652]
[1729560273621,0.65897563,67447.0,67446.0,0.002652]
[1729560274281,0.91150447,67447.0,67446.0,0.002652]
[1729560274934,0.90550447,67447.0,67446.0,0.001652]
[1729560275153,0.90950447,67447.0,67446.0,0.002652]
[1729560275403,0.82079436,67447.0,67446.0,0.002652]
[1729560275637,0.91256234,67447.0,67446.0,0.003652]
[1729560275848,0.90956234,67447.0,67446.0,0.002652]
[1729560276315,0.82379436,67447.0,67446.0,0.003652]
[1729560277678,0.93476536,67447.0,67446.0,0.003652]
[1729560278334,1.04960106,67447.0,67446.0,0.003652]
[1729560278574,1.0402242,67447.0,67446.0,0.003652]
[1729560278799,1.02077909,67447.0,67446.0,0.003652]
[1729560279036,0.93200928,67447.0,67446.0,0.003652]
[1729560279271,1.04298028,67447.0,67446.0,0.003652]
[1729560279523,0.93200928,67447.0,67446.0,0.003652]
[1729560279965,1.0402242,67447.0,67446.0,0.003652]
[1729560280184,0.93200928,67447.0,67446.0,0.003652]
[1729560280726,1.02076968,67447.0,67446.0,0.003652]
[1729560280953,0.93200928,67447.0,67446.0,0.003652]
[1729560281549,1.02076498,67447.0,67446.0,0.003652]
[1729560282155,0.93200928,67447.0,67446.0,0.003652]
[1729560282355,0.49997236,67447.0,67446.0,0.003652]
[1729560282573,0.33615363,67447.0,67446.0,0.003652]
[1729560282977,0.37875903,67447.0,67446.0,0.003652]
[1729560283398,0.38075903,67447.0,67446.0,0.002652]
[1729560283799,0.40675903,67447.0,67446.0,0.003652]
[1729560283968,0.36238533,67447.0,67446.0,0.003652]
[1729560284622,0.35838533,67447.0,67446.0,0.002652]
[1729560285013,0.36415363,67447.0,67446.0,0.003652]
[1729560285502,0.47236855,67447.0,67446.0,0.003652]
[1729560291518,0.58058347,67447.0,67446.0,0.003652]
[1729560291729,0.74440403,67447.0,67446.0,0.003652]
[1729560292153,0.85533367,67447.0,67446.0,0.003652]
[1729560292627,1.00429282,67447.0,67446.0,0.003652]
[1729560292856,0.89336318,67447.0,67446.0,0.003652]
[1729560292994,0.98212308,67447.0,67446.0,0.003652]
[1729560293828,1.00429282,67447.0,67446.0,0.003652]
[1729560295354,0.89336318,67447.0,67446.0,0.003652]
[1729560296321,0.89997951,67447.0,67446.0,0.003652]
[1729560297710,0.99997951,67447.0,67446.0,0.003652]
[1729560297925,1.13309508,67447.0,67446.0,0.003652]
[1729560298564,1.13326484,67447.0,67446.0,0.003652]
[1729560299000,0.99997951,67447.0,67446.0,0.003652]
[1729560299459,1.00017073,67447.0,67446.0,0.003652]
[1729560299946,1.00017073,67447.0,67438.0,0.001652]
[1729560299947,0.30758963,67439.0,67438.0,0.001652]
[1729560300164,0.9852724,67439.0,67438.0,0.001652]
[1729560300612,1.13528167,67439.0,67438.0,0.001652]
[1729560301485,0.91385183,67439.0,67438.0,0.001652]
[1729560301711,0.87705748,67439.0,67438.0,0.001652]
[1729560301930,0.88805748,67439.0,67438.0,0.002652]
[1729560302578,0.90205748,67439.0,67438.0,0.003652]
[1729560303010,0.90211055,67439.0,67438.0,0.003652]
[1729560303785,0.87711055,67439.0,67438.0,0.001652]
[1729560304026,0.53193648,67439.0,67438.0,0.002652]
[1729560304248,0.012,67439.0,67438.0,0.002652]
[1729560304473,0.148271,67444.0,67438.0,0.001652]
[1729560304686,0.148273,67443.0,67438.0,0.150935]
[1729560304832,0.011,67439.0,67438.0,0.150935]
[1729560305259,0.022,67439.0,67438.0,0.151935]
[1729560305523,0.19270878,67443.0,67438.0,0.149935]
[1729560305656,0.148275,67442.0,67438.0,0.149935]
[1729560305858,0.04443578,67443.0,67438.0,0.002652]
[1729560306074,0.023,67442.0,67439.0,0.00572405]
[1729560306452,0.148278,67441.0,67439.0,0.00572405]
[1729560306675,0.148279,67440.0,67439.0,0.00572405]
[1729560307810,0.175277,67442.0,67439.0,0.00572405]
[1729560308022,0.148278,67441.0,67439.0,0.00572405]
[1729560308695,0.149278,67441.0,67439.0,0.00572405]
[1729560308931,0.148278,67441.0,67439.0,0.00572405]
[1729560309149,0.04443999,67443.0,67440.0,0.148278]
[1729560309381,0.04443999,67444.0,67441.0,0.00564278]
[1729560310036,0.002,67442.0,67441.0,0.00564278]
[1729560310479,0.002,67443.0,67441.0,0.00564278]
[1729560310711,0.148275,67442.0,67441.0,0.00564278]
[1729560311008,0.150273,67443.0,67441.0,0.00564278]
[1729560311210,0.150273,67443.0,67439.0,0.148281]
[1729560311436,0.148273,67443.0,67442.0,0.00564278]
[1729560311659,0.148273,67443.0,67439.0,0.150281]
[1729560311879,0.148273,67443.0,67442.0,0.00564278]
[1729560312088,0.148273,67443.0,67439.0,0.149933]
[1729560312307,0.148273,67443.0,67442.0,0.00564278]
[1729560312746,0.04444276,67444.0,67439.0,0.001652]
[1729560312973,0.04444276,67444.0,67443.0,0.148273]
[1729560313195,0.04444276,67446.0,67445.0,0.150268]
[1729560313403,0.04444276,67446.0,67445.0,0.148268]
[1729560313614,0.04526542,67447.0,67446.0,0.148266]
[1729560313842,0.000826,67447.0,67446.0,0.148266]
[1729560314075,0.000826,67447.0,67444.0,0.150269]
[1729560314304,0.21413074,67447.0,67446.0,0.00564278]
[1729560314507,0.148271,67444.0,67443.0,0.005]
[1729560314731,0.148279,67440.0,67439.0,0.001652]
[1729560314959,0.148279,67440.0,67439.0,0.00729478]
[1729560315838,0.148279,67440.0,67439.0,0.001652]
[1729560316056,0.150279,67440.0,67439.0,0.001652]
[1729560316694,0.152279,67440.0,67439.0,0.001652]
[1729560316918,0.152279,67440.0,67439.0,0.00729478]